fUSD/lending_fUSD_20250610
["ID","MTS","AMOUNT","RATE_DAILY","PERIOD"]
[365236791,1749559853511,-168.0,0.00019631,2]
[365236793,1749559853520,-150.0,0.00019634,4]
[365236795,1749559853530,-150.0,0.00019635,4]
[365236797,1749559853539,-150.0,0.00019648,4]
[365236799,1749559853549,-323.92487369,0.0001965,2]
[365236801,1749559853558,-150.0,0.00019651,4]
[365236803,1749559853572,-150.0,0.00019651,4]
[365236805,1749559853581,-150.0,0.00019651,4]
[365236807,1749559853590,-263.97114947,0.00019652,18]
[365236809,1749559853599,-643.26,0.00019658,2]
[365236812,1749559853610,-150.0,0.00019658,4]
[365236814,1749559853619,-150.0,0.0001966,4]
[365236816,1749559853628,-500.0,0.00019666,2]
[365236818,1749559853639,-150.0,0.00019667,4]
[365236819,1749559853649,-150.0,0.00019667,4]
[365236822,1749559853659,-209.0,0.0001967,2]
[365236824,1749559853669,-212.0,0.00019671,2]
[365236825,1749559853679,-209.0,0.00019671,2]
[365236827,1749559853688,-212.0,0.00019671,2]
[365236830,1749559853698,-212.0,0.00019671,2]
[365236831,1749559853708,-150.0,0.00019673,4]
[365236833,1749559853719,-150.0,0.00019684,4]
[365236835,1749559853729,-150.0,0.00019685,4]
[365236838,1749559853738,-500.0,0.00019688,2]
[365236840,1749559853748,-150.0,0.00019689,4]
[365236842,1749559853757,-150.0,0.00019689,4]
[365236844,1749559853766,-1323.66463515,0.00019693,2]
[365236846,1749559853775,-150.0,0.00019698,4]
[365236848,1749559853785,-33654.67011746,0.000197,2]
[365236850,1749559853794,-150.0,0.00019701,4]
[365236852,1749559853803,-1762.99406622,0.00019707,2]
[365236853,1749559853812,-150.0,0.00019709,4]
[365236856,1749559853822,-150.0,0.0001971,4]
[365236858,1749559853831,-150.0,0.00019717,4]
[365236865,1749559853894,-504.89904587,0.00019721,2]
[365236867,1749559853904,-173.88912291,0.00019721,2]
[365236869,1749559853914,-150.0,0.00019721,4]
[365236872,1749559853923,-150.0,0.00019723,4]
[365236873,1749559853932,-500.0,0.00019726,2]
[365236875,1749559853942,-692.98,0.00019726,2]
[365236877,1749559853951,-490.0,0.00019726,2]
[365236880,1749559853962,-1138.97,0.00019726,2]
[365236882,1749559853971,-513.04,0.00019726,2]
[365236884,1749559853980,-518.97,0.00019726,2]
[365236886,1749559853989,-1331.31,0.00019726,2]
[365236888,1749559853998,-490.0,0.00019726,2]
[365236889,1749559854007,-571.88,0.00019726,2]
[365236892,1749559854019,-7871.67,0.00019726,2]
[365236894,1749559854029,-152.0,0.00019728,11]
[365236896,1749559854038,-150.0,0.00019728,4]
[365236898,1749559854047,-150.0,0.0001973,2]
[365236900,1749559854056,-150.0,0.00019734,4]
[365236902,1749559854065,-150.0,0.00019734,4]
[365236904,1749559854074,-150.0,0.00019734,2]
[365236906,1749559854083,-150.0,0.00019736,4]
[365236907,1749559854092,-150.0,0.00019736,2]
[365236909,1749559854101,-2000.0,0.00019744,2]
[365236911,1749559854110,-150.0,0.00019748,4]
[365236913,1749559854119,-150.0,0.00019749,2]
[365236915,1749559854128,-150.0,0.0001975,4]
[365236917,1749559854137,-150.0,0.00019752,4]
[365236919,1749559854146,-150.0,0.00019758,2]
[365236922,1749559854156,-150.0,0.00019761,4]
[365236924,1749559854165,-150.0,0.00019767,4]
[365236925,1749559854174,-150.0,0.00019767,4]
[365236927,1749559854183,-150.0,0.00019767,4]
[365236929,1749559854192,-212.0,0.0001977,2]
[365236931,1749559854201,-150.0,0.00019773,4]
[365236933,1749559854210,-150.0,0.00019774,2]
[365236935,1749559854219,-150.0,0.00019776,2]
[365236937,1749559854229,-150.0,0.00019783,4]
[365236939,1749559854239,-150.0,0.00019784,4]
[365236941,1749559854248,-150.0,0.00019786,4]
[365236943,1749559854257,-206.16691252,0.00019788,2]
[365236945,1749559854266,-210.0,0.0001979,2]
[365236947,1749559854275,-1323.66463515,0.00019797,2]
[365236949,1749559854286,-150.0,0.00019799,4]
[365236951,1749559854295,-31686.98349983,0.000198,2]
[365236953,1749559854305,-2640.14995,0.000198,2]
[365236956,1749559854314,-150.0,0.000198,4]
[365236957,1749559854323,-150.0,0.000198,4]
[365236959,1749559854333,-150.0,0.00019806,4]
[365236961,1749559854342,-150.0,0.00019809,2]
[365236964,1749559854352,-13511.27392039,0.0001981,2]
[365236966,1749559854362,-245.35493621,0.0001981,2]
[365236968,1749559854371,-150.0,0.00019811,4]
[365236970,1749559854380,-150.0,0.00019813,2]
[365236972,1749559854390,-150.0,0.00019814,4]
[365236974,1749559854399,-150.0,0.00019817,4]
[365236976,1749559854408,-150.0,0.00019824,4]
[365236978,1749559854418,-150.0,0.00019825,4]
[365236980,1749559854427,-151.0,0.00019828,2]
[365236981,1749559854436,-151.0,0.00019828,2]
[365236983,1749559854445,-151.0,0.00019828,2]
[365236985,1749559854455,-150.0,0.00019834,4]
[365236988,1749559854464,-150.0,0.00019834,2]
[365236990,1749559854473,-150.68287783,0.00019836,2]
[365236991,1749559854482,-150.0,0.00019836,2]
[365236993,1749559854492,-150.0,0.00019836,4]
[365236995,1749559854501,-153.980103,0.00019838,2]
[365236997,1749559854511,-151.0,0.00019838,2]
[365237000,1749559854520,-172.578524,0.00019838,2]
[365237001,1749559854529,-172.578524,0.00019838,2]
[365237004,1749559854539,-151.0,0.00019838,2]
[365237006,1749559854548,-201.606857,0.00019838,2]
[365237008,1749559854562,-201.606857,0.00019838,2]
[365237010,1749559854571,-3921.09149067,0.00019838,2]
[365237012,1749559854580,-150.0,0.00019845,4]
[365237013,1749559854589,-150.0,0.00019845,4]
[365237015,1749559854598,-150.0,0.00019849,4]
[365237017,1749559854609,-150.0,0.0001985,4]
[365237019,1749559854619,-150.0,0.00019852,2]
[365237022,1749559854629,-278.099687,0.00019858,2]
[365237024,1749559854638,-1000.0,0.0001986,2]
[365237026,1749559854649,-150.0,0.0001986,2]
[365237028,1749559854658,-150.0,0.00019862,4]
[365237030,1749559854668,-150.0,0.00019865,2]
[365237032,1749559854677,-150.0,0.00019866,2]
[365237034,1749559854687,-150.0,0.00019867,4]
[365237036,1749559854697,-150.0,0.00019867,4]
[365237038,1749559854706,-150.0,0.00019874,4]
[365237040,1749559854716,-150.0,0.00019876,4]
[365237042,1749559854725,-150.0,0.00019877,2]
[365237044,1749559854735,-12500.0,0.00019882,2]
[365237046,1749559854744,-150.0,0.00019884,4]
[365237048,1749559854753,-150.0,0.00019884,4]
[365237050,1749559854765,-150.0,0.00019884,4]
[365237052,1749559854774,-150.0,0.00019886,2]
[365237054,1749559854784,-150.0,0.00019887,4]
[365237056,1749559854794,-692.98,0.0001989,2]
[365237058,1749559854804,-500.0,0.0001989,2]
[365237060,1749559854814,-490.0,0.0001989,2]
[365237062,1749559854824,-1138.97,0.0001989,2]
[365237064,1749559854834,-513.04,0.0001989,2]
[365237066,1749559854844,-518.97,0.0001989,2]
[365237068,1749559854854,-1331.31,0.0001989,2]
[365237070,1749559854864,-431.44,0.0001989,2]
[365237072,1749559854874,-571.88,0.0001989,2]
[365237074,1749559854884,-7871.67,0.0001989,2]
[365237076,1749559854894,-12500.0,0.00019891,2]
[365237078,1749559854904,-5800.0,0.00019892,2]
[365237080,1749559854914,-150.0,0.00019892,2]
[365237083,1749559854924,-150.0,0.00019894,2]
[365237085,1749559854934,-150.0,0.00019898,2]
[365237087,1749559854944,-152.30567012,0.00019898,2]
[365237089,1749559854955,-2081.32776676,0.00019899,2]
[365237091,1749559854966,-719.892167,0.00019899,2]
[365237093,1749559854976,-550.22498094,0.00019899,2]
[365237095,1749559854986,-150.0,0.00019899,4]
[365237097,1749559854996,-719.892167,0.000199,2]
[365237099,1749559855007,-550.22498094,0.000199,2]
[365237101,1749559855017,-181028.65621878,0.000199,2]
[365237103,1749559855027,-2649.14066612,0.000199,2]
[365237105,1749559855038,-216.0,0.000199,2]
[365237107,1749559855048,-151.0,0.000199,2]
[365237109,1749559855058,-596.4562461,0.000199,2]
[365237111,1749559855068,-12500.0,0.000199,2]
[365237113,1749559855080,-12500.0,0.000199,2]
[365237115,1749559855090,-151.0,0.000199,2]
[365237117,1749559855100,-172.578524,0.000199,2]
[365237119,1749559855110,-172.578524,0.000199,2]
[365237121,1749559855120,-201.606857,0.000199,2]
[365237123,1749559855131,-201.606857,0.000199,2]
[365237125,1749559855144,-5800.0,0.000199,2]
[365237127,1749559855154,-151.0,0.000199,2]
[365237129,1749559855164,-151.0,0.000199,2]
[365237132,1749559855174,-151.0,0.000199,2]
[365237134,1749559855184,-3482.86326036,0.000199,2]
[365237136,1749559855194,-1323.66463515,0.000199,2]
[365237138,1749559855204,-719.892167,0.000199,2]
[365237140,1749559855214,-550.22498094,0.000199,2]
[365237142,1749559855224,-323.92487369,0.000199,2]
[365237144,1749559855235,-150.0,0.000199,4]
[365237146,1749559855246,-150.0,0.00019907,4]
[365237148,1749559855256,-166.66,0.00019911,2]
[365237149,1749559855267,-167.02,0.00019911,2]
[365237150,1749559855278,-150.0,0.00019912,4]
[365237151,1749559855288,-150.0,0.00019917,4]
[365237152,1749559855300,-150.0,0.00019922,4]
[365237153,1749559855310,-150.0,0.00019924,4]
[365237154,1749559855320,-150.0,0.00019925,2]
[365237155,1749559855330,-150.0,0.0001993,2]
[365237156,1749559855341,-150.0,0.00019933,4]
[365237158,1749559855352,-150.0,0.00019933,4]
[365237160,1749559855362,-150.0,0.00019937,4]
[365237161,1749559855373,-150.0,0.00019938,4]
[365237163,1749559855383,-150.0,0.0001994,2]
[365237165,1749559855393,-150.0,0.00019942,4]
[365237168,1749559855404,-500.0,0.00019943,2]
[365237170,1749559855414,-354.51,0.00019944,2]
[365237172,1749559855424,-150.0,0.0001995,4]
[365237174,1749559855434,-150.0,0.0001995,4]
[365237176,1749559855444,-150.0,0.00019958,2]
[365237178,1749559855455,-150.0,0.00019961,4]
[365237180,1749559855465,-150.0,0.00019962,4]
[365237182,1749559855475,-340.0,0.00019962,6]
[365237184,1749559855486,-150.0,0.00019967,4]
[365237186,1749559855496,-150.0,0.00019968,2]
[365237188,1749559855506,-150.0,0.00019969,4]
[365237190,1749559855517,-400.0,0.0001997,2]
[365237192,1749559855527,-400.0,0.0001997,2]
[365237194,1749559855538,-400.0,0.0001997,2]
[365237196,1749559855549,-1000.0,0.0001997,2]
[365237198,1749559855559,-1000.0,0.0001997,2]
[365237201,1749559855572,-1000.0,0.0001997,2]
[365237203,1749559855584,-400.0,0.0001997,2]
[365237205,1749559855595,-1000.0,0.0001997,2]
[365237207,1749559855605,-617.58032003,0.0001997,2]
[365237209,1749559855615,-1000.0,0.0001997,2]
[365237211,1749559855625,-1000.0,0.0001997,2]
[365237213,1749559855635,-1000.0,0.0001997,2]
[365237215,1749559855646,-159.86756489,0.00019973,2]
[365237217,1749559855656,-150.0,0.00019975,4]
[365237219,1749559855667,-20000.0,0.0001998,2]
[365237221,1749559855677,-9308.47507881,0.0001998,2]
[365237223,1749559855687,-150.0,0.00019983,4]
[365237225,1749559855698,-151.0,0.00019984,2]
[365237227,1749559855709,-172.578524,0.00019984,2]
[365237230,1749559855719,-172.578524,0.00019984,2]
[365237232,1749559855733,-201.606857,0.00019984,2]
[365237235,1749559855748,-201.606857,0.00019984,2]
[365237237,1749559855763,-151.0,0.00019984,2]
[365237240,1749559855774,-151.0,0.00019984,2]
[365237242,1749559855787,-151.0,0.00019984,2]
[365237244,1749559855801,-890.5434031,0.00019986,2]
[365237247,1749559855813,-652.0038897,0.00019986,2]
[365237249,1749559855826,-413.4643763,0.00019986,2]
[365237251,1749559855839,-174.924863,0.00019986,2]
[365237254,1749559855853,-7500.5189608,0.00019986,2]
[365237256,1749559855867,-5491.442102,0.00019986,2]
[365237258,1749559855879,-3482.3652432,0.00019986,2]
[365237260,1749559855889,-1473.2883845,0.00019986,2]
[365237263,1749559855901,-15627.0610036,0.00019986,2]
[365237265,1749559855914,-11525.8806901,0.00019986,2]
[365237267,1749559855927,-7424.7003767,0.00019986,2]
[365237270,1749559855940,-3323.5200633,0.00019986,2]
[365237272,1749559855953,-150.0,0.00019987,4]
[365237275,1749559855967,-150.0,0.00019988,2]
[365237277,1749559855980,-500.0,0.00019989,2]
[365237279,1749559855992,-486.06,0.00019989,2]
[365237282,1749559856006,-343197.96874809,0.0001999,2]
[365237284,1749559856020,-2165.51406415,0.0001999,2]
[365237286,1749559856032,-889.68114588,0.0001999,2]
[365237289,1749559856046,-151.0,0.0001999,2]
[365237291,1749559856059,-151.0,0.0001999,2]
[365237294,1749559856072,-151.0,0.0001999,2]
[365237296,1749559856086,-172.578524,0.0001999,2]
[365237298,1749559856098,-172.578524,0.0001999,2]
[365237301,1749559856110,-172.578524,0.0001999,2]
[365237303,1749559856121,-172.578524,0.0001999,2]
[365237305,1749559856132,-201.606857,0.0001999,2]
[365237307,1749559856143,-201.606857,0.0001999,2]
[365237310,1749559856156,-201.606857,0.0001999,2]
[365237312,1749559856171,-201.606857,0.0001999,2]
[365237315,1749559856182,-151.0,0.0001999,2]
[365237317,1749559856192,-151.0,0.0001999,2]
[365237319,1749559856205,-151.0,0.0001999,2]
[365237321,1749559856219,-162.116244,0.0001999,2]
[365237324,1749559856232,-151.0,0.0001999,2]
[365237326,1749559856244,-151.0,0.0001999,2]
[365237328,1749559856255,-150.0,0.00019992,2]
[365237330,1749559856266,-579490.13956845,0.00019998,2]
[365237382,1749559856772,-607.03,0.00017589,2]
[365237384,1749559856782,-607.03,0.00017753,2]
[365237386,1749559856791,-607.03,0.00017917,2]
[365237388,1749559856801,-607.03,0.00018082,2]
[365237390,1749559856811,-607.03,0.00018246,2]
[365237392,1749559856820,-512.11823412,0.0001841,2]
[365237396,1749559856846,-94.91176588,0.0001841,2]
[365237398,1749559856856,-607.03,0.00018575,2]
[365237400,1749559856868,-181.05823412,0.00018739,2]
[365237402,1749559856884,-1104.48176588,0.00018739,2]
[365237404,1749559856894,-47.41823658,0.00018904,2]
[365237407,1749559856906,-851.86392763,0.00018904,2]
[365237809,1749559861104,-386.25783579,0.00018904,2]
[365237811,1749559861114,-1285.54,0.00019068,2]
[365237814,1749559861124,-1285.54,0.00019232,2]
[365237816,1749559861133,-1285.54,0.00019397,2]
[365237818,1749559861143,-150.0,0.00019782,2]
[365237820,1749559861153,-825170.48243257,0.00019998,2]
[365237822,1749559861164,-395.92311807,0.00019998,2]
[365237825,1749559861184,-607.03,0.00018739,2]
[365237827,1749559861193,-733.25652838,0.00019998,2]
[365237829,1749559861205,-365.18659252,0.00019998,2]
[365237831,1749559861217,-310.63466875,0.00019998,2]
[365237849,1749559861381,480.0,0.00016438,2]
[365237854,1749559861418,684.56127896,0.00016442,2]
[365237864,1749559861531,-480.0,0.00016438,2]
[365237865,1749559861543,-520.0,0.00016442,2]
[365237866,1749559861563,-504.32271055,0.00016442,2]
[365237867,1749559861575,-1711.87058023,0.00016442,2]
[365237868,1749559861590,-607.24543026,0.00016442,2]
[365237870,1749559861600,-607.03,0.00018904,2]
[365237872,1749559861610,-607.03,0.00019068,2]
[365237874,1749559861620,-607.03,0.00019232,2]
[365237876,1749559861629,-607.03,0.00019397,2]
[365237878,1749559861639,-1285.54,0.00019561,2]
[365237880,1749559861648,-607.03,0.00019561,2]
[365237882,1749559861659,-1285.54,0.00019726,2]
[365237884,1749559861668,-358.20220315,0.00019726,2]
[365238168,1749559864651,-416.89908598,0.00018144,2]
[365238169,1749559864659,-248.82779685,0.00019726,2]
[365238171,1749559864669,-1285.54,0.0001989,2]
[365238172,1749559864679,-607.03,0.0001989,2]
[365238174,1749559864688,-1453.8779112,0.00019998,2]
[365238176,1749559864699,-2109.75398706,0.00019998,2]
[365238180,1749559864756,150.0,0.00038611,60]
[365238188,1749559864866,-465.95666029,0.00016438,2]
[365238190,1749559864875,-439.0,0.00016438,2]
[365238192,1749559864884,-869.50384579,0.00019998,2]
[365238193,1749559864896,-579.73043324,0.00019998,2]
[365238195,1749559864907,-324.30481781,0.00019998,2]
[365238197,1749559864923,-897.468,0.00019998,2]
[365238199,1749559864934,-735.12,0.00019998,2]
[365238201,1749559864945,-3930.43983076,0.00019998,2]
[365238203,1749559864956,-20450.78757247,0.00019998,2]
[365238207,1749559865003,-2384.7387174,0.00019998,2]
[365238208,1749559865012,-151.0,0.00019998,2]
[365238211,1749559865031,-172.578524,0.00019998,2]
[365238213,1749559865043,-121.58475859,0.00019998,2]
[365238215,1749559865055,-50.99377241,0.00019998,2]
[365238216,1749559865064,-201.606857,0.00019998,2]
[365238218,1749559865074,-201.606866,0.00019998,2]
[365238219,1749559865083,-151.0,0.00019998,7]
[365238221,1749559865093,-151.0,0.00019998,7]
[365238223,1749559865102,-151.0,0.00019998,7]
[365238224,1749559865111,-151.0,0.00019998,7]
[365238226,1749559865121,-151.0,0.00019998,7]
[365238228,1749559865132,-151.0,0.00019998,7]
[365238230,1749559865142,-151.0,0.00019998,7]
[365238231,1749559865151,-151.0,0.00019998,7]
[365238233,1749559865160,-67.03860164,0.00019998,7]
[365238235,1749559865172,-83.96139836,0.00019998,7]
[365238236,1749559865181,-151.0,0.00019998,7]
[365238238,1749559865190,-151.0,0.00019998,7]
[365238240,1749559865200,-151.0,0.00019998,7]
[365238241,1749559865211,-151.0,0.00019998,7]
[365238243,1749559865223,-151.0,0.00019998,7]
[365238245,1749559865234,-151.0,0.00019998,7]
[365238246,1749559865245,-151.0,0.00019998,7]
[365238248,1749559865256,-151.0,0.00019998,7]
[365238250,1749559865266,-151.0,0.00019998,7]
[365238251,1749559865277,-151.0,0.00019998,7]
[365238253,1749559865291,-151.0,0.00019998,7]
[365238255,1749559865303,-151.0,0.00019998,7]
[365238256,1749559865314,-151.0,0.00019998,7]
[365238258,1749559865325,-151.0,0.00019998,7]
[365238260,1749559865337,-151.0,0.00019998,7]
[365238262,1749559865348,-151.0,0.00019998,7]
[365238263,1749559865358,-151.0,0.00019998,7]
[365238264,1749559865369,-97.19985704,0.00019998,7]
[365238908,1749559872736,11315.59,0.00015829,2]
[365239029,1749559922943,851.95286966,0.00012529,2]
[365239030,1749559923300,851.95286966,0.00012792,2]
[365239031,1749559923628,851.95286966,0.0001315,2]
[365239032,1749559923979,851.95286966,0.00013317,2]
[365239033,1749559924376,851.95286966,0.00013517,2]
[365239034,1749559925223,851.95286966,0.00013812,2]
[365239035,1749559925570,851.95286966,0.00014151,2]
[365239036,1749559925889,235.63785094,0.00014325,2]
[365239037,1749559925912,204.14383984,0.00014325,2]
[365239038,1749559925935,412.17117888,0.00014325,2]
[365239039,1749559926225,851.95286966,0.00014751,2]
[365239040,1749559926607,851.95286966,0.00015024,2]
[365239041,1749559926939,851.95286966,0.00015281,2]
[365239042,1749559927276,851.95286966,0.00015486,2]
[365239043,1749559927606,851.95286966,0.00015842,2]
[365239044,1749559942450,600.0,0.00038611,60]
[365239045,1749559949281,150.0,0.0002,30]
[365239046,1749559957851,200.0,0.00038611,60]
[365239047,1749559980626,200.0,0.00038611,60]
[365239048,1749559987017,200.0,0.00038611,60]
[365239049,1749560002835,200.0,0.00038611,60]
[365239050,1749560010067,200.0,0.00038611,60]
[365239051,1749560018522,203.0,0.00038611,60]
[365239052,1749560028745,200.0,0.00038611,60]
[365239053,1749560044209,851.95286966,0.00014626,2]
[365239054,1749560044274,851.95286966,0.00014915,2]
[365239055,1749560044601,851.95286966,0.00015073,2]
[365239056,1749560044945,851.95286966,0.00015353,2]
[365239057,1749560045310,851.95286966,0.0001569,2]
[365239058,1749560045668,246.22747351,0.00015988,2]
[365239059,1749560045692,605.72539615,0.00015988,2]
[365239060,1749560060314,200.0,0.00038611,60]
[365239061,1749560070870,150.0,0.0002,30]
[365239062,1749560141864,169.17,0.00015827,2]
[365239063,1749560146158,3163.86,0.00015764,2]
[365239064,1749560151039,16866.34008975,0.00038613,60]
[365239065,1749560164054,851.95286966,0.00015627,2]
[365239066,1749560192787,150.0,0.0002,30]
[365239068,1749560202462,1333.0,0.00024362,120]
[365239069,1749560206385,409.39,0.00013699,2]
[365239070,1749560279168,2000.0,0.00015703,2]
[365239071,1749560283994,851.95286966,0.00015653,2]
[365239072,1749560312986,700.0,0.00024657,120]
[365239073,1749560313235,700.0,0.00024657,120]
[365239074,1749560314133,150.0,0.0002,30]
[365239075,1749560314480,700.0,0.00024657,120]
[365239076,1749560314721,700.0,0.00024657,120]
[365239077,1749560314971,700.0,0.00024657,120]
[365239078,1749560315239,800.10649162,0.00024657,120]
[365239079,1749560337487,6493.44878905,0.00015867,2]
[365239080,1749560337511,5043.45121095,0.00015867,2]
[365239081,1749560343840,176.96,0.00012694,2]
[365239082,1749560371616,900.34,0.00019205,30]
[365239083,1749560379575,200.0,0.00015726,2]
[365239084,1749560404166,851.95286966,0.00015901,2]
[365239085,1749560417470,240.86,0.0001573,2]
[365239086,1749560436008,150.0,0.0002,30]
[365239087,1749560437889,183.32,0.00015698,2]
[365239088,1749560443207,150.0,0.00015692,2]
[365239089,1749560445482,5691.42230332,0.00038565,60]
[365239090,1749560445890,226.5,0.00015988,2]
[365239091,1749560445937,5691.42230332,0.00038565,60]
[365239092,1749560446314,5691.42230332,0.00038565,60]
[365239093,1749560467248,26789.0592757,0.00038565,60]
[365239094,1749560467419,12769.01,0.00015684,2]
[365239095,1749560467554,26789.0592757,0.00038565,60]
[365239096,1749560467844,26789.0592757,0.00038565,60]
[365239097,1749560475918,13899.97115016,0.00038565,60]
[365239098,1749560476325,13899.97115016,0.00038565,60]
[365239099,1749560476636,13899.97115016,0.00038565,60]
[365239100,1749560477768,261.12,0.00015688,2]
[365239101,1749560484439,1681.03683309,0.00038565,60]
[365239102,1749560484791,1681.03683309,0.00038565,60]
[365239103,1749560485077,1681.03683309,0.00038565,60]
[365239104,1749560492258,2421.04470627,0.00038565,60]
[365239105,1749560492548,2421.04470627,0.00038565,60]
[365239106,1749560492880,2421.04470627,0.00038565,60]
[365239107,1749560495275,500.0,0.00015685,2]
[365239108,1749560508049,2236.25,0.00015714,2]
[365239109,1749560522872,2000.0,0.00038565,120]
[365239110,1749560528266,2000.0,0.00038565,120]
[365239111,1749560529863,505.49,0.00024658,120]
[365239112,1749560530045,2000.0,0.00038565,120]
[365239113,1749560531827,2000.0,0.00038565,120]
[365239114,1749560532983,500.0,0.0001557,2]
[365239115,1749560533466,2000.0,0.00038565,120]
[365239116,1749560535021,2000.0,0.00038565,120]
[365239117,1749560539342,2000.0,0.00038565,120]
[365239118,1749560540994,2000.0,0.00038565,120]
[365239119,1749560542678,2000.0,0.00038565,120]
[365239120,1749560552715,2000.0,0.00038565,120]
[365239121,1749560554140,2000.0,0.00038565,120]
[365239122,1749560555803,2000.0,0.00038565,120]
[365239123,1749560557001,150.0,0.0002,30]
[365239124,1749560557380,2000.0,0.00038565,120]
[365239125,1749560558993,2000.0,0.00038565,120]
[365239126,1749560560559,2000.0,0.00038565,120]
[365239127,1749560578792,2000.0,0.00038565,120]
[365239128,1749560584328,2000.0,0.00038565,120]
[365239129,1749560587694,2000.0,0.00038565,120]
[365239130,1749560597320,137.77571939,0.00015553,2]
[365239131,1749560597346,4517.66428061,0.00015553,2]
[365239132,1749560598256,533.49,0.00015553,2]
[365239133,1749560601263,2000.0,0.00038565,120]
[365239134,1749560605404,250.0,0.00015552,2]
[365239135,1749560608426,2000.0,0.00038565,120]
[365239136,1749560609989,2000.0,0.00038565,120]
[365239137,1749560611361,2000.0,0.00038565,120]
[365239138,1749560643258,2000.0,0.00038565,120]
[365239139,1749560645301,2000.0,0.00038565,120]
[365239140,1749560650471,2000.0,0.00038565,120]
[365239141,1749560652357,2000.0,0.00038565,120]
[365239142,1749560654246,2000.0,0.00038565,120]
[365239143,1749560657016,2000.0,0.00038565,120]
[365239144,1749560660967,2000.0,0.00038565,120]
[365239145,1749560665493,5254.86,0.00038565,60]
[365239146,1749560678422,150.0,0.0002,30]
[365239147,1749560685886,716.99,0.00015578,2]
[365239148,1749560695701,264.0,0.00024657,120]
[365239149,1749560707516,2458.63859692,0.00038565,60]
[365239150,1749560707805,2458.63859692,0.00038565,60]
[365239151,1749560708102,2458.63859692,0.00038565,60]
[365239152,1749560724595,200.0,0.00038573,60]
[365239153,1749560724889,200.0,0.00038573,60]
[365239154,1749560737509,2751.0,0.00015545,2]
[365239155,1749560743743,209.31,0.00015546,2]
[365239156,1749560744283,6419.61,0.00015546,2]
[365239157,1749560759874,8079.13551939,0.00015539,2]
[365239158,1749560759898,15820.86448061,0.00015539,2]
[365239159,1749560763968,191.5,0.00016,2]
[365239160,1749560788862,375972.72974607,0.000198,120]
[365239161,1749560791352,200.0,0.00015554,2]
[365239162,1749560799894,150.0,0.0002,30]
[365239163,1749560800960,1477.2,0.00013655,2]
[365239164,1749560801170,1477.2,0.00015918,2]
[365239165,1749560885920,851.95286966,0.00013471,2]
[365239166,1749560886308,851.95286966,0.0001387,2]
[365239167,1749560886605,267.14722431,0.00014065,2]
[365239168,1749560886631,584.80564535,0.00014065,2]
[365239169,1749560886964,851.95286966,0.00014369,2]
[365239170,1749560887313,851.95286966,0.00014545,2]
[365239171,1749560887641,317.8181954,0.00014868,2]
[365239172,1749560887666,534.13467426,0.00014868,2]
[365239173,1749560887970,851.95286966,0.00015125,2]
[365239174,1749560888659,206.15343911,0.0001546,2]
[365239175,1749560888687,645.79943055,0.0001546,2]
[365239176,1749560888979,851.95286966,0.00015767,2]
[365239177,1749560900768,2698.87090986,0.00038573,60]